[Event "AUT Bundesliga Women 2021-22"]
[Site "Austria"]
[Date "2022.03.27"]
[Round "7.11"]
[White "Konecny, Sophie"]
[Black "Goeschl, Ortrun"]
[Result "0-1"]
[ECO "A40"]
[WhiteElo "1835"]
[BlackElo "1898"]
[Annotator "NA"]
[PlyCount "71"]
[EventDate "2021.11.06"]
[EventType "team-tourn"]
[EventCountry "AUT"]
[SourceTitle "playchess.com"]
[Source "ChessBase"]
[SourceQuality "1"]
[TimeControl "40/5400+30:1800+30"]

1. d4 {[%emt 0:00:03]} e5 {[%emt 0:00:04]} 2. dxe5 {[%emt 0:00:56]} Nc6 {[%emt 0:00:04]} 3. Nf3 {[%emt 0:02:46]} Qe7 {[%emt 0:00:06]} 4. e3 {[%emt 0:03:45]} Nxe5 {[%emt 0:01:18]} 5. Be2 {[%emt 0:04:04]} Nf6 6. Nc3 {[%emt 0:03:45]} c6 {[%emt 0:01:46]} 7. b3 {[%emt 0:07:37]} d5 {[%emt 0:06:23]} 8. h3 {[%emt 0:04:11]} Bf5 {[%emt 0:01:44]} 9. Nd4 {[%emt 0:06:40]} Bg6 {[%emt 0:02:56]} 10. Bb2 {[%emt 0:15:23]} h5 {[%emt 0:10:34]} 11. Qd2 {[%emt 0:07:28]} O-O-O {[%emt 0:01:49]} 12. O-O-O $11 {[%emt 0:05:37]} Qc7 {[%emt 0:04:53]} 13. f3 {[%emt 0:11:36]} Qa5 {[%emt 0:04:10]} 14. Na4 {[%emt 0:16:00]} Qc7 {[%emt 0:00:55]} 15. Qc3 {[%emt 0:04:19]} Ned7 {[%emt 0:01:07]} 16. b4 {[%emt 0:02:57]} Nb6 {[%emt 0:09:49]} 17. Nxb6+ {[%emt 0:02:51]} Qxb6 {[%emt 0:02:39]} 18. a3 {[%emt 0:00:27]} Bd6 {[%emt 0:00:31]} 19. Nb3 {[%emt 0:01:59]} Rhe8 {[%emt 0:00:29]} 20. Qd4 {[%emt 0:02:41]} Rxe3 {[%emt 0:01:20]} 21. Qd2 Bf4 {[%emt 0:18:07]} 22. Bd4 {[%emt 0:02:21]} Rxe2 {[%emt 0:00:03]} 23. Bxb6 {[%emt 0:00:35]} Rxd2 {[%emt 0:00:22]} 24. Nxd2 {[%emt 0:00:29]} axb6 {[%emt 0:00:15]} 25. Rhe1 {[%emt 0:00:30]} d4 {[%emt 0:01:49]} 26. Kb2 {[%emt 0:00:29]} Nd5 {[%emt 0:00:12]} 27. Nb3 {[%emt 0:00:38]} c5 {[%emt 0:03:42]} 28. bxc5 {[%emt 0:00:27]} bxc5 {[%emt 0:00:01]} 29. Nxc5 {[%emt 0:00:34]} Ne3 {[%emt 0:00:01]} 30. Nb3 {[%emt 0:00:26]} Nd5 {[%emt 0:00:59]} 31. Nc5 {[%emt 0:00:34]} Ne3 {[%emt 0:00:01]} 32. Rb1 {[%emt 0:00:29]} Nxg2 {[%emt 0:04:07]} 33. Red1 {[%emt 0:00:31]} Ne3 {[%emt 0:00:25]} 34. Rg1 {[%emt 0:00:24]} Bd6 {[%emt 0:01:19]} 35. Nd3 {[%emt 0:00:30]} Nc4+ {[%emt 0:00:20]} 36. Ka2 {[%emt 0:00:00]} 0-1

[Event "AUT Bundesliga Women 2021-22"]
[Site "Austria"]
[Date "2022.03.27"]
[Round "7.12"]
[White "Zoehrer, Sarah"]
[Black "Wu, Min"]
[Result "0-1"]
[ECO "A46"]
[WhiteElo "1650"]
[BlackElo "1952"]
[Annotator "ChessBase"]
[PlyCount "62"]
[EventDate "2021.11.06"]
[EventType "team-tourn"]
[EventCountry "AUT"]
[SourceTitle "playchess.com"]
[Source "ChessBase"]
[SourceQuality "1"]
[TimeControl "40/5400+30:1800+30"]

1. d4 Nf6 2. Nf3 e6 3. Bg5 h6 4. Bh4 d5 5. e3 Be7 6. Nbd2 O-O 7. Ne5 Nbd7 8. Bg3 Nxe5 9. Bxe5 c5 10. c3 b6 11. Bd3 a5 12. Qe2 Bb7 13. O-O Bd6 14. f4 Ne4 15. Bxd6 Qxd6 16. Nxe4 dxe4 17. Bc4 cxd4 18. cxd4 Rfc8 19. Rfc1 Bd5 20. b3 a4 21. Bxd5 Qxd5 22. Rxc8+ Rxc8 23. bxa4 Qa5 24. Rb1 Qxa4 25. Rxb6 Rc2 26. Qb5 Rc1+ 27. Kf2 Qc2+ 28. Kg3 Rg1 29. Qb2 Rxg2+ 30. Kh3 Rxh2+ 31. Kg3 Qxb2 0-1

[Event "AUT Bundesliga Women 2021-22"]
[Site "Austria"]
[Date "2022.03.27"]
[Round "7.13"]
[White "Heinemann, Josefine"]
[Black "Motycakova, Monika"]
[Result "1-0"]
[ECO "C99"]
[WhiteElo "2290"]
[BlackElo "2102"]
[Annotator "ChessBase"]
[PlyCount "128"]
[EventDate "2021.11.06"]
[EventType "team-tourn"]
[EventCountry "AUT"]
[SourceTitle "playchess.com"]
[Source "ChessBase"]
[SourceQuality "1"]
[TimeControl "40/5400+30:1800+30"]

1. e4 {[%emt 0:00:03]} e5 {[%emt 0:00:05]} 2. Nf3 {[%emt 0:00:05]} Nc6 {[%emt 0:00:05]} 3. Bb5 {[%emt 0:00:04]} a6 {[%emt 0:00:06]} 4. Ba4 {[%emt 0:00:04]} Nf6 {[%emt 0:00:05]} 5. O-O {[%emt 0:00:08]} Be7 {[%emt 0:00:09]} 6. Re1 {[%emt 0:00:05]} b5 {[%emt 0:00:09]} 7. Bb3 {[%emt 0:00:05]} d6 {[%emt 0:00:07]} 8. c3 {[%emt 0:00:04]} O-O {[%emt 0:00:08]} 9. h3 {[%emt 0:00:05]} Na5 {[%emt 0:00:43]} 10. Bc2 {[%emt 0:00:06]} c5 {[%emt 0:00:03]} 11. d4 {[%emt 0:00:04]} Qc7 {[%emt 0:00:12]} 12. Nbd2 {[%emt 0:00:06]} cxd4 {[%emt 0:00:19]} 13. cxd4 {[%emt 0:00:08]} Nc6 {[%emt 0:00:05]} 14. Nb3 {[%emt 0:00:09]} a5 {[%emt 0:00:18]} 15. Be3 {[%emt 0:00:05]} a4 {[%emt 0:00:04]} 16. Nbd2 {[%emt 0:00:03]} Bd7 {[%emt 0:00:17]} 17. Rc1 {[%emt 0:00:24]} Qb7 {[%emt 0:00:48]} 18. Qe2 {[%emt 0:00:33]} Rfe8 {[%emt 0:01:13]} 19. Bd3 {[%emt 0:00:24]} Rab8 {[%emt 0:01:35]} 20. dxe5 {[%emt 0:00:22]} Nxe5 {[%emt 0:03:10]} 21. Nxe5 {[%emt 0:00:24]} dxe5 {[%emt 0:00:06]} 22. Bc5 {[%emt 0:00:33]} Bc6 {[%emt 0:10:38]} 23. Nf3 {[%emt 0:00:52]} Nd7 {[%emt 0:22:24]} 24. Bxe7 {[%emt 0:00:08]} Rxe7 {[%emt 0:00:04]} 25. Rc3 {[%emt 0:01:09]} Re6 {[%emt 0:12:58]} 26. Rec1 {[%emt 0:10:00]} b4 {[%emt 0:07:33]} 27. R3c2 {[%emt 0:13:31]} Rd6 {[%emt 0:02:22]} 28. Rd2 {[%emt 0:05:02]} h6 {[%emt 0:07:29]} 29. Qe3 {[%emt 0:06:41]} Qb6 {[%emt 0:12:57]} 30. Qxb6 {[%emt 0:02:42]} Nxb6 {[%emt 0:02:44]} 31. Bf1 {[%emt 0:07:12]} Re6 {[%emt 0:08:10]} 32. Nxe5 {[%emt 0:06:18]} Bxe4 {[%emt 0:00:08]} 33. Nd7 {[%emt 0:00:19]} Nxd7 {[%emt 0:06:56]} 34. Rxd7 {[%emt 0:00:04]} Rb7 {[%emt 0:00:10]} 35. Rc8+ {[%emt 0:06:25]} Kh7 {[%emt 0:00:04]} 36. Rd4 {[%emt 0:01:44]} Bb1 {[%emt 0:01:50]} 37. Bc4 {[%emt 0:02:47]} Re1+ {[%emt 0:00:24]} 38. Kh2 {[%emt 0:00:03]} b3 {[%emt 0:01:50]} 39. axb3 {[%emt 0:05:05]} axb3 {[%emt 0:00:06]} 40. Rf8 {[%emt 0:00:15]} Bc2 {[%emt 0:01:21]} 41. Bxf7 {[%emt 0:35:55]} g5 {[%emt 0:12:16]} 42. Bd5 {[%emt 0:00:00]} Rb6 {[%emt 0:01:51]} 43. Bf3 {[%emt 0:00:00]} Kg7 {[%emt 0:04:35]} 44. Rdd8 {[%emt 0:00:00]} Rb1 {[%emt 0:02:36]} 45. Bd5 {[%emt 0:00:00]} h5 {[%emt 0:05:50]} 46. Rh8 {[%emt 0:00:00]} Rg6 {[%emt 0:04:08]} 47. Rdg8+ {[%emt 0:00:00]} Kf6 {[%emt 0:00:05]} 48. Re8 {[%emt 0:00:00]} g4 {[%emt 0:01:40]} 49. h4 {[%emt 0:00:00]} Kg7 {[%emt 0:00:55]} 50. Rhf8 {[%emt 0:00:00]} Kh6 {[%emt 0:01:05]} 51. Re7 {[%emt 0:00:00]} Rd6 {[%emt 0:00:25]} 52. Be6 {[%emt 0:02:32]} Rxb2 {[%emt 0:00:30]} 53. Rh8+ {[%emt 0:02:45]} Kg6 {[%emt 0:00:04]} 54. Bf7+ {[%emt 0:00:20]} Kf6 {[%emt 0:00:30]} 55. Rb7 {[%emt 0:00:06]} Ke5 {[%emt 0:01:01]} 56. Rxh5+ {[%emt 0:00:54]} Kd4 {[%emt 0:00:21]} 57. Rhb5 {[%emt 0:03:15]} Kc3 {[%emt 0:00:26]} 58. Rc5+ {[%emt 0:01:29]} Kd2 {[%emt 0:00:34]} 59. Rd5+ {[%emt 0:01:29]} Rxd5 {[%emt 0:00:05]} 60. Bxd5 {[%emt 0:00:03]} Bd1 {[%emt 0:00:58]} 61. h5 {[%emt 0:01:34]} Ke1 {[%emt 0:00:32]} 62. Kg3 {[%emt 0:01:00]} Rd2 {[%emt 0:00:33]} 63. Re7+ {[%emt 0:01:07]} Kf1 {[%emt 0:00:20]} 64. Bc4+ {[%emt 0:00:04]} Be2 {[%emt 0:00:07]} 1-0

[Event "AUT Bundesliga Women 2021-22"]
[Site "Austria"]
[Date "2022.03.27"]
[Round "7.14"]
[White "Kurapova, Olga"]
[Black "Imnadze, Nato"]
[Result "0-1"]
[ECO "B51"]
[WhiteElo "1893"]
[BlackElo "2238"]
[Annotator "NA"]
[PlyCount "173"]
[EventDate "2021.11.06"]
[EventType "team-tourn"]
[EventCountry "AUT"]
[SourceTitle "playchess.com"]
[Source "ChessBase"]
[SourceQuality "1"]
[TimeControl "40/5400+30:1800+30"]

1. e4 {[%emt 0:00:03]} c5 {[%emt 0:00:58]} 2. Nf3 {[%emt 0:00:04]} d6 {[%emt 0:00:03]} 3. Bb5+ {[%emt 0:00:07]} Nc6 {[%emt 0:01:15]} 4. O-O {[%emt 0:01:56]} Bd7 {[%emt 0:00:17]} 5. Re1 {[%emt 0:00:11]} Nf6 {[%emt 0:01:39]} 6. c4 {[%emt 0:01:46]} g6 {[%emt 0:04:24]} 7. Nc3 {[%emt 0:01:25]} Bg7 {[%emt 0:00:44]} 8. d3 {[%emt 0:00:43]} O-O {[%emt 0:01:29]} 9. h3 {[%emt 0:00:25]} a6 {[%emt 0:01:26]} 10. Ba4 {[%emt 0:02:08]} Ne8 {[%emt 0:04:12]} (10... Nd4 $11) 11. Bf4 {[%emt 0:17:54]} Nc7 {[%emt 0:04:42]} 12. Bxc6 {[%emt 0:03:19]} Bxc6 {[%emt 0:06:41]} 13. Qd2 {[%emt 0:00:13]} b5 {[%emt 0:06:48]} 14. Bh6 {[%emt 0:00:57]} f5 {[%emt 0:09:44]} (14... e5 $11) 15. Bxg7 {[%emt 0:03:41]} Kxg7 {[%emt 0:00:19]} 16. Nd5 {[%emt 0:01:28]} (16. d4 $1 $14) 16... e5 {[%emt 0:05:44]} 17. Ng5 {[%emt 0:06:30]} Bxd5 {[%emt 0:04:39]} 18. exd5 {[%emt 0:01:44]} h6 {[%emt 0:07:56]} 19. Nf3 {[%emt 0:01:44]} b4 {[%emt 0:08:31]} 20. Qe2 {[%emt 0:04:41]} Qf6 {[%emt 0:00:31]} 21. Nd2 $11 {[%emt 0:00:44]} Kh7 22. f4 Rae8 23. Qf2 Rf7 24. b3 Rfe7 25. a3 bxa3 26. fxe5 Rxe5 27. Rxe5 Qxe5 28. d4 Qf6 29. Rxa3 cxd4 30. b4 Rb8 31. Rb3 Na8 32. Nf3 Nb6 33. Qe2 Rc8 34. c5 dxc5 35. bxc5 Nxd5 36. Qc4 Qc6 37. Qxd4 Kg8 38. Ra3 Qxc5 39. Qxc5 Rxc5 40. Rxa6 Ne7 41. h4 Rc6 42. Ra7 Re6 43. Kf2 Nd5 44. g3 Ne3 45. Ra2 Ng4+ 46. Kg2 Rd6 47. Nh2 Nf6 48. Nf3 Ne4 49. Ra4 Rb6 50. Ra2 Kg7 51. Ne5 Rb3 52. Nf3 g5 53. Ra7+ Kg6 54. hxg5 Rb2+ 55. Kg1 hxg5 56. Ra3 g4 57. Nd4 Ng5 58. Ra6+ Kf7 59. Nxf5 Nh3+ 60. Kf1 Rf2+ 61. Ke1 Rxf5 62. Ra4 Nf2 63. Ke2 Rf6 64. Rb4 Kg6 65. Ra4 Kg5 66. Ra5+ Kh6 67. Ra4 Rf5 68. Rc4 Kg6 69. Ra4 Kf7 70. Rb4 Ke7 71. Ra4 Kd7 72. Ke3 Kc6 73. Ke2 Kb6 74. Rb4+ Ka6 75. Rc4 Kb5 76. Rd4 Rf8 77. Rd5+ Kc4 78. Ra5 Ne4 79. Ke3 Nc5 80. Ra7 Rf3+ 81. Ke2 Ne4 82. Ra4+ Kd5 83. Ra5+ Ke6 84. Ra6+ Kf5 85. Ra5+ Kg6 86. Ra6+ Rf6 87. Rxf6+ 0-1

[Event "AUT Bundesliga Women 2021-22"]
[Site "Austria"]
[Date "2022.03.27"]
[Round "7.15"]
[White "Hrescak, Ivana"]
[Black "Wielander, Magdalena"]
[Result "1-0"]
[ECO "E47"]
[WhiteElo "2161"]
[BlackElo "1178"]
[Annotator "NA"]
[PlyCount "79"]
[EventDate "2021.11.06"]
[EventType "team-tourn"]
[EventCountry "AUT"]
[SourceTitle "playchess.com"]
[Source "ChessBase"]
[SourceQuality "1"]
[TimeControl "40/5400+30:1800+30"]

1. d4 {[%emt 0:00:02]} Nf6 {[%emt 0:00:04]} 2. c4 {[%emt 0:00:05]} e6 {[%emt 0:00:03]} 3. Nc3 {[%emt 0:00:05]} Bb4 {[%emt 0:00:04]} 4. e3 {[%emt 0:00:11]} O-O {[%emt 0:00:19]} 5. Bd3 {[%emt 0:00:10]} Re8 {[%emt 0:02:23]} 6. a3 {[%emt 0:04:41]} Bf8 {[%emt 0:02:45]} 7. d5 {[%emt 0:00:50]} a5 {[%emt 0:05:59]} 8. Nge2 {[%emt 0:00:38]} Na6 {[%emt 0:00:07]} 9. O-O {[%emt 0:00:48]} Nc5 {[%emt 0:00:17]} 10. Bc2 {[%emt 0:00:30]} b6 {[%emt 0:01:49]} 11. b3 {[%emt 0:01:38]} Bb7 {[%emt 0:04:22]} 12. Bb2 {[%emt 0:02:57]} c6 {[%emt 0:10:29]} 13. dxc6 {[%emt 0:05:11]} Bxc6 {[%emt 0:08:04]} 14. b4 {[%emt 0:07:53]} (14. Nf4 $14) 14... Nce4 {[%emt 0:02:13]} 15. Nxe4 {[%emt 0:20:05]} Nxe4 {[%emt 0:00:29]} 16. f3 {[%emt 0:00:59]} Nf6 {[%emt 0:00:35]} 17. b5 {[%emt 0:04:47]} Bb7 {[%emt 0:00:30]} 18. Qd3 {[%emt 0:00:34]} g6 {[%emt 0:07:42]} 19. e4 {[%emt 0:04:45]} Bc5+ {[%emt 0:05:04]} 20. Kh1 {[%emt 0:00:11]} d5 {[%emt 0:06:58]} 21. cxd5 $14 {[%emt 0:01:27]} exd5 {[%emt 0:03:48]} 22. e5 {[%emt 0:00:14]} Nd7 {[%emt 0:06:31]} 23. f4 {[%emt 0:00:16]} Qh4 {[%emt 0:06:28]} 24. Nd4 Nf8 {[%emt 0:06:52]} 25. Nc6 {[%emt 0:20:21]} Rac8 {[%emt 0:03:40]} 26. Bb3 {[%emt 0:04:23]} Ne6 {[%emt 0:05:14]} 27. Bxd5 {[%emt 0:02:28]} Nxf4 {[%emt 0:00:32]} 28. Qc4 {[%emt 0:00:00]} Ne6 29. Qd3 {[%emt 0:01:47]} Nf4 {[%emt 0:01:00]} 30. Qc4 {[%emt 0:00:30]} Bf2 {[%emt 0:05:49]} 31. Bxf7+ {[%emt 0:04:50]} Kf8 {[%emt 0:00:29]} 32. Bxe8 {[%emt 0:03:59]} Rxe8 {[%emt 0:00:10]} 33. Bc1 {[%emt 0:02:18]} g5 {[%emt 0:03:05]} 34. Bxf4 {[%emt 0:02:27]} gxf4 {[%emt 0:00:27]} 35. Rxf2 {[%emt 0:01:55]} Qxf2 {[%emt 0:00:05]} 36. Rf1 {[%emt 0:00:03]} Qb2 {[%emt 0:02:37]} 37. Rxf4+ {[%emt 0:00:30]} Kg7 {[%emt 0:00:07]} 38. Qf7+ {[%emt 0:00:09]} Kh6 {[%emt 0:00:23]} 39. Qf6+ {[%emt 0:00:05]} Kh5 {[%emt 0:00:18]} 40. Rh4# {[%emt 0:00:05]} 1-0

[Event "AUT Bundesliga Women 2021-22"]
[Site "Austria"]
[Date "2022.03.27"]
[Round "7.16"]
[White "Wolf, Elena"]
[Black "Trippold, Denise"]
[Result "0-1"]
[ECO "B48"]
[WhiteElo "1147"]
[BlackElo "2068"]
[Annotator "ChessBase"]
[PlyCount "48"]
[EventDate "2021.11.06"]
[EventType "team-tourn"]
[EventCountry "AUT"]
[SourceTitle "playchess.com"]
[Source "ChessBase"]
[SourceQuality "1"]
[TimeControl "40/5400+30:1800+30"]

1. e4 c5 2. Nf3 e6 3. d4 cxd4 4. Nxd4 Nc6 5. Nc3 Qc7 6. Be3 a6 7. Bd3 Nf6 8. h3 Be7 9. Qd2 d6 10. O-O-O b5 11. Nce2 Ne5 12. c3 Bb7 13. f3 O-O 14. Bc2 Nc4 15. Qd3 Nd7 16. Ng3 Nde5 17. Qe2 Rfc8 18. Bb3 b4 19. Bxc4 Nxc4 20. Qd3 Qa5 21. Nge2 Qxa2 22. Qb1 Qxb1+ 23. Kxb1 Nxe3 24. Rc1 Nxg2 0-1

[Event "AUT Bundesliga Women 2021-22"]
[Site "Austria"]
[Date "2022.03.27"]
[Round "7.17"]
[White "Brunello, Marina"]
[Black "Ragger, Anna-Christina"]
[Result "1-0"]
[ECO "C55"]
[WhiteElo "2349"]
[BlackElo "2156"]
[Annotator "ChessBase"]
[PlyCount "109"]
[EventDate "2021.11.06"]
[EventType "team-tourn"]
[EventCountry "AUT"]
[SourceTitle "playchess.com"]
[Source "ChessBase"]
[SourceQuality "1"]
[TimeControl "40/5400+30:1800+30"]

1. e4 {[%emt 0:00:03]} e5 {[%emt 0:00:05]} 2. Nf3 {[%emt 0:00:03]} Nc6 {[%emt 0:00:04]} 3. Bc4 {[%emt 0:00:04]} Nf6 {[%emt 0:00:11]} 4. d3 {[%emt 0:00:12]} Be7 {[%emt 0:00:13]} 5. O-O {[%emt 0:00:43]} O-O {[%emt 0:00:21]} 6. Re1 {[%emt 0:00:52]} d6 {[%emt 0:00:26]} 7. a4 {[%emt 0:00:05]} Na5 {[%emt 0:06:47]} 8. Ba2 {[%emt 0:00:04]} c5 {[%emt 0:00:22]} 9. c3 {[%emt 0:01:51]} Be6 {[%emt 0:10:33]} 10. Na3 {[%emt 0:18:24]} a6 {[%emt 0:15:38]} 11. Bd2 {[%emt 0:05:40]} Nc6 {[%emt 0:06:48]} 12. Nc4 {[%emt 0:10:23]} b5 {[%emt 0:03:34]} 13. Ne3 {[%emt 0:01:12]} Bxa2 {[%emt 0:00:22]} 14. Rxa2 {[%emt 0:00:05]} Re8 {[%emt 0:14:26]} 15. axb5 {[%emt 0:08:51]} axb5 {[%emt 0:00:13]} 16. Qb3 {[%emt 0:00:06]} Na5 {[%emt 0:04:27]} 17. Qxb5 {[%emt 0:13:13]} Qc7 {[%emt 0:00:47]} 18. Rea1 {[%emt 0:00:18]} Reb8 {[%emt 0:00:38]} 19. Qa4 {[%emt 0:00:14]} Nb3 {[%emt 0:05:29]} 20. Qxa8 {[%emt 0:01:00]} Nxa1 {[%emt 0:00:16]} 21. Nd5 {[%emt 0:04:33]} Nxd5 {[%emt 0:00:54]} 22. Qxd5 {[%emt 0:00:05]} Nb3 {[%emt 0:01:03]} 23. h3 {[%emt 0:01:06]} Nxd2 {[%emt 0:00:31]} 24. Nxd2 {[%emt 0:00:11]} g6 {[%emt 0:00:32]} 25. Nc4 {[%emt 0:00:13]} Qb7 {[%emt 0:04:35]} 26. Qxb7 {[%emt 0:03:56]} Rxb7 {[%emt 0:00:04]} 27. Ra6 {[%emt 0:00:03]} Kg7 {[%emt 0:03:27]} 28. Rb6 {[%emt 0:02:28]} Ra7 {[%emt 0:05:53]} 29. Nxd6 {[%emt 0:02:27]} Ra1+ {[%emt 0:03:32]} 30. Kh2 {[%emt 0:00:04]} Rd1 {[%emt 0:00:11]} 31. g3 {[%emt 0:03:08]} Rxd3 {[%emt 0:01:07]} 32. Nc4 {[%emt 0:00:04]} f6 {[%emt 0:05:56]} 33. Rb7 {[%emt 0:02:26]} Kf7 {[%emt 0:00:16]} 34. Kg2 {[%emt 0:00:12]} h5 {[%emt 0:01:07]} 35. Ne3 {[%emt 0:00:38]} Ke6 {[%emt 0:00:15]} 36. Nd5 {[%emt 0:01:01]} Bd6 {[%emt 0:01:33]} 37. Rg7 {[%emt 0:00:25]} g5 {[%emt 0:00:38]} 38. Rg6 {[%emt 0:01:47]} Be7 {[%emt 0:00:28]} 39. Rg8 {[%emt 0:00:06]} Bd6 {[%emt 0:02:39]} 40. Re8+ {[%emt 0:02:15]} Kf7 {[%emt 0:00:06]} 41. Rd8 {[%emt 0:31:34]} Ke6 {[%emt 0:33:02]} 42. Ne3 {[%emt 0:00:05]} Ke7 {[%emt 0:01:19]} 43. Rh8 {[%emt 0:00:23]} Kf7 {[%emt 0:00:00]} 44. Rxh5 {[%emt 0:00:00]} Bf8 {[%emt 0:00:00]} 45. Rh7+ {[%emt 0:00:00]} Ke6 {[%emt 0:00:00]} 46. Rb7 {[%emt 0:00:00]} Rd2 {[%emt 0:00:00]} 47. Rb6+ {[%emt 0:00:00]} Kf7 {[%emt 0:00:00]} 48. Nd5 {[%emt 0:00:00]} Bg7 {[%emt 0:00:00]} 49. Rb7+ {[%emt 0:00:00]} Kf8 {[%emt 0:00:00]} 50. Kf3 {[%emt 0:00:00]} f5 {[%emt 0:00:00]} 51. Ke3 {[%emt 0:00:00]} Rd1 {[%emt 0:00:00]} 52. Ke2 {[%emt 0:00:00]} Rh1 {[%emt 0:00:00]} 53. exf5 {[%emt 0:00:00]} Rxh3 {[%emt 0:00:00]} 54. f6 {[%emt 0:00:00]} Bh6 {[%emt 0:00:00]} 55. Ne3 {[%emt 0:00:00]} 1-0

[Event "AUT Bundesliga Women 2021-22"]
[Site "Austria"]
[Date "2022.03.27"]
[Round "7.18"]
[White "Berke, Ana"]
[Black "Klek, Hanna Marie"]
[Result "0-1"]
[ECO "C77"]
[WhiteElo "2140"]
[BlackElo "2314"]
[Annotator "ChessBase"]
[PlyCount "90"]
[EventDate "2021.11.06"]
[EventType "team-tourn"]
[EventCountry "AUT"]
[SourceTitle "playchess.com"]
[Source "ChessBase"]
[SourceQuality "1"]
[TimeControl "40/5400+30:1800+30"]

1. e4 e5 2. Nf3 Nc6 3. Bb5 a6 4. Ba4 Nf6 5. d3 d6 6. c3 g6 7. O-O Bg7 8. h3 O-O 9. Bc2 Re8 10. c4 Nd7 11. Nc3 Nc5 12. a3 a5 13. Rb1 Ne6 14. Ne2 Bd7 15. Ba4 Rf8 16. Nh2 f5 17. exf5 Rxf5 18. Ng4 Qh4 19. Be3 Ned4 20. Ng3 Rg5 21. Qd2 Bxg4 22. hxg4 Rxg4 23. Bd1 Rf4 24. Ne4 Rxe4 25. dxe4 Qxe4 26. Ba4 Qg4 27. f3 Qf5 28. Rfc1 h5 29. Bxc6 Nxc6 30. Qd5+ Kh7 31. f4 e4 32. Qd2 Rf8 33. Rd1 b6 34. Qf2 Qe6 35. Qe2 Bh6 36. g3 Ne7 37. b4 Nf5 38. Kg2 Qxc4 39. Qd2 axb4 40. axb4 Bg7 41. Rbc1 Qb3 42. Re1 Ra8 43. Rb1 Qe6 44. Re2 d5 45. g4 Nh4+ 0-1

[Event "AUT Bundesliga Women 2021-22"]
[Site "Austria"]
[Date "2022.03.27"]
[Round "7.19"]
[White "Wunderl, Eva"]
[Black "Krassnitzer, Julia"]
[Result "1-0"]
[ECO "B01"]
[WhiteElo "1898"]
[BlackElo "1793"]
[Annotator "NA"]
[PlyCount "37"]
[EventDate "2021.11.06"]
[EventType "team-tourn"]
[EventCountry "AUT"]
[SourceTitle "playchess.com"]
[Source "ChessBase"]
[SourceQuality "1"]
[TimeControl "40/5400+30:1800+30"]

1. e4 {[%emt 0:00:02]} d5 {[%emt 0:00:07]} 2. exd5 {[%emt 0:00:11]} Nf6 {[%emt 0:00:07]} 3. Nf3 {[%emt 0:00:14]} Nxd5 {[%emt 0:00:15]} 4. d4 {[%emt 0:00:22]} Bg4 {[%emt 0:05:26]} 5. Be2 {[%emt 0:00:08]} e6 {[%emt 0:02:02]} 6. O-O {[%emt 0:03:10]} Be7 {[%emt 0:03:22]} 7. c4 {[%emt 0:04:18]} Nb6 {[%emt 0:04:21]} 8. Be3 {[%emt 0:06:29]} N8d7 {[%emt 0:07:38]} 9. b3 {[%emt 0:06:19]} c5 {[%emt 0:04:58]} 10. Nc3 {[%emt 0:03:54]} cxd4 {[%emt 0:04:33]} (10... O-O $14) 11. Bxd4 {[%emt 0:03:21]} Bf6 {[%emt 0:00:14]} (11... O-O $14) 12. Ne4 {[%emt 0:04:36]} Bxd4 {[%emt 0:04:31]} 13. Nd6+ $18 {[%emt 0:03:15]} ({Don't do} 13. Nxd4 $6 Bxe2 14. Qxe2 O-O $16) ({Resist} 13. Qxd4 $6 O-O $16) 13... Ke7 {[%emt 0:11:34]} 14. Qxd4 {[%emt 0:00:27]} Nf6 {[%emt 0:00:33]} 15. Rad1 {[%emt 0:03:47]} Qc7 {[%emt 0:08:38]} 16. Nb5 {[%emt 0:03:33]} Qd7 {[%emt 0:06:50]} 17. Qc5+ {[%emt 0:00:56]} Ke8 {[%emt 0:05:52]} 18. Rxd7 {[%emt 0:03:44]} Nfxd7 {[%emt 0:00:06]} 19. Qd4 {[%emt 0:02:43]} 1-0

[Event "AUT Bundesliga Women 2021-22"]
[Site "Austria"]
[Date "2022.03.27"]
[Round "7.20"]
[White "Krassnitzer, Maria"]
[Black "Anker, Christin"]
[Result "0-1"]
[ECO "C44"]
[WhiteElo "1654"]
[BlackElo "1843"]
[Annotator "NA"]
[PlyCount "66"]
[EventDate "2021.11.06"]
[EventType "team-tourn"]
[EventCountry "AUT"]
[SourceTitle "playchess.com"]
[Source "ChessBase"]
[SourceQuality "1"]
[TimeControl "40/5400+30:1800+30"]

1. e4 e5 2. Nf3 Nc6 3. c3 d5 4. d3 Nf6 5. exd5 Qxd5 6. Be2 Bf5 7. d4 exd4 8. Nxd4 Nxd4 9. Qxd4 Qxg2 10. Qe5+ Be6 11. Rf1 O-O-O 12. Be3 Bd6 13. Qa5 a6 14. Nd2 Qxh2 15. O-O-O Qe5 16. Qa4 Bd5 17. Nc4 Qe8 18. Nxd6+ Rxd6 19. Qa5 Qc6 20. Rg1 g6 21. Bd4 Re8 22. Rge1 Ne4 23. Qb4 f5 24. f4 Bg8 25. a3 Rdd8 26. Qa5 Rd5 27. Qb4 a5 28. Qc4 Qxc4 29. Bxc4 Rdd8 30. Bxg8 Rxg8 31. Rh1 c5 32. Be5 Rxd1+ 33. Rxd1 Rd8 0-1